[Event "6th Tulsi Lal Memorial NTCC 2080"]
[Site "Lalitpur"]
[Date "2024.01.09"]
[Round "3.5"]
[White "Subedi, Rajan"]
[Black "Lama, Milan"]
[Result "1-0"]
[ECO "B34"]
[WhiteElo "1809"]
[BlackElo "2010"]
[Annotator "TA"]
[PlyCount "94"]
[EventDate "2024.01.03"]
[EventType "team-tourn"]
[EventCountry "NEP"]
[SourceTitle "playchess.com"]
[Source "ChessBase"]
[SourceQuality "1"]
[TimeControl "5400+30"]

{[%evp 12,94,6,0,21,0,28,24,15,9,25,27,44,0,15,15,34,16,25,9,37,33,41,30,44,36,77,85,98,91,85,32,37,36,39,37,70,63,82,79,83,87,98,100,83,89,158,156,160,160,190,193,356,359,364,358,332,351,352,351,368,349,415,398,570,561,563,555,642,635,672,645,789,787,686,718,763,715,1540,1166,1166,1177,1163,1135,29986]} 1. e4 {[%emt 0:01:43]} c5 {[%emt 0:00:09]} 2. Nf3 {[%emt 0:00:07]} Nc6 {[%emt 0:00:10]} 3. d4 {[%emt 0:00:07]} cxd4 {[%emt 0:00:06]} 4. Nxd4 {[%emt 0:00:06]} g6 {[%emt 0:00:12]} 5. g3 {[%emt 0:02:49]} Bg7 {[%emt 0:00:27]} 6. Be3 {[%emt 0:01:01]} Nf6 {[%emt 0:03:00]} 7. Bg2 {[%emt 0:00:08]} O-O {[%emt 0:01:03] B34: Sicilian: Accelerated Dragon with 5 Nc3: sidelines.} 8. O-O {[%emt 0:00:57]} (8. Nc3 $5) 8... Ng4 {[%emt 0:12:02][%mdl 64] [#] Deflection} 9. Qxg4 {[%emt 0:00:30] c3 is the strong threat.} Nxd4 {[%emt 0:00:28] White has an edge.} 10. Qd1 {[%emt 0:00:30]} Nc6 {[%emt 0:04:33] [#]} (10... Ne6 $5 {[%cal Rg7b2]}) 11. c3 $146 {[%emt 0:00:23]} ({Predecessor:} 11. Nc3 d6 12. Kh1 h5 13. f4 Bg4 14. Qd3 Nb4 15. Qd2 Rc8 16. a3 Nc6 17. Nd5 {½-½ Schut,L (2259)-Komiagina,M (2241) Titled Tuesday intern op 20th Apr blitz 2021 (6)}) 11... d6 {[%emt 0:01:10]} 12. h3 {[%emt 0:00:05]} Qc7 {[%emt 0:05:57]} 13. Na3 {[%emt 0:00:26]} Ne5 {[%emt 0:06:19]} 14. Qe2 {[%emt 0:11:16]} Be6 {[%emt 0:04:38]} 15. Rfd1 {[%emt 0:00:33]} a6 {[%emt 0:08:49]} 16. f4 {[%emt 0:12:07]} Nc4 {[%emt 0:01:52]} 17. Nxc4 {[%emt 0:00:18]} Bxc4 {[%emt 0:00:15]} 18. Qf2 {[%emt 0:00:34]} f5 {[%emt 0:04:01]} 19. Bb6 {[%emt 0:02:41]} Qb8 {[%emt 0:07:43]} 20. exf5 {[%emt 0:01:11]} Rxf5 {[%emt 0:03:42]} 21. Qe3 {[%emt 0:04:08]} (21. b3 $16 Bb5 22. Bd5+ Rxd5 23. Rxd5) 21... e5 $1 $14 {[%emt 0:05:27]} 22. fxe5 {[%emt 0:04:39]} Rxe5 {[%emt 0:03:07]} 23. Qf4 $36 {[%emt 0:04:51][%mdl 2048] White is more active.} Be6 {[%emt 0:10:03]} 24. Bd4 {[%emt 0:00:54] White has more active pieces.} Rf5 {[%emt 0:02:03] Black is on the road to losing.} 25. Qe3 {[%emt 0:01:16]} Be5 {[%emt 0:05:36]} 26. g4 {[%emt 0:02:35]} Rf7 {[%emt 0:03:20]} 27. Bxe5 {[%emt 0:00:31]} dxe5 {[%emt 0:00:33]} 28. Re1 {[%emt 0:00:33]} Kg7 {[%emt 0:02:18]} (28... Rd7 $142) 29. Qxe5+ $16 {[%emt 0:00:45]} Qxe5 {[%emt 0:00:10]} 30. Rxe5 {[%emt 0:00:05]} Kf6 {[%emt 0:02:43]} 31. Re3 {[%emt 0:00:37]} Bc4 {[%emt 0:01:45] [#] Wards off Rf1+} (31... Re7 {was called for.} 32. Rf1+ Kg7) 32. b3 $18 {[%emt 0:00:21]} Bb5 {[%emt 0:00:12]} 33. Rf3+ {[%emt 0:00:56]} Kg7 {[%emt 0:00:33]} 34. Rxf7+ {[%emt 0:00:05]} Kxf7 {[%emt 0:00:05]} 35. Bxb7 {[%emt 0:00:10][%mdl 4096] Endgame KRB-KRB} Rb8 {[%emt 0:01:34]} 36. Bd5+ {[%emt 0:00:09]} Kf6 {[%emt 0:00:33]} 37. c4 {[%emt 0:00:09]} Bd7 {[%emt 0:01:41]} (37... Be8 $142 38. Re1 Kg5) 38. Rf1+ {[%emt 0:00:19] White is clearly winning.} Ke5 {[%emt 0:00:12]} 39. Rf7 {[%emt 0:00:26][%csl LRd7,LRh7]} Kd6 {[%emt 0:00:37]} 40. Rxh7 {[%emt 0:00:23]} a5 {[%emt 0:00:24]} 41. Rg7 {[%emt 0:00:08]} a4 {[%emt 0:00:21]} 42. Rxg6+ {[%emt 0:00:20]} Ke5 {[%emt 0:00:43]} 43. Rg7 {[%emt 0:00:28]} Bc8 44. Re7+ {[%emt 0:00:29]} Kf4 {[%emt 0:01:06]} 45. Re4+ {[%emt 0:00:09]} Kg3 {[%emt 0:00:42]} 46. Re3+ {[%emt 0:00:06]} (46. bxa4 $2 {leads to mate.} Rb1+) 46... Kh4 {[%emt 0:00:32]} 47. Kh2 {[%emt 0:00:12]} Ra8 {[%emt 0:01:04] Weighted Error Value: White=0.04 (flawless) /Black=0.29 (precise)} 1-0

[Event "6th Tulsi Lal Memorial NTCC 2080"]
[Site "Lalitpur"]
[Date "2024.01.09"]
[Round "3.6"]
[White "Thapa, Rishon"]
[Black "Belbase, Kushal"]
[Result "1-0"]
[ECO "B13"]
[WhiteElo "1738"]
[BlackElo "1520"]
[Annotator "NA RC COMBH"]
[PlyCount "65"]
[EventDate "2024.01.03"]
[EventType "team-tourn"]
[EventCountry "NEP"]
[SourceTitle "playchess.com"]
[Source "ChessBase"]
[SourceQuality "1"]
[TimeControl "5400+30"]

1. e4 {[%emt 0:00:14]} c6 {[%emt 0:04:17]} 2. d4 {[%emt 0:00:12]} d5 {[%emt 0:00:22]} 3. exd5 {[%emt 0:00:41]} cxd5 {[%emt 0:00:12]} 4. Bd3 {[%emt 0:00:06]} Nf6 {[%emt 0:01:01]} 5. h3 {[%emt 0:00:18]} Nc6 {[%emt 0:01:39]} 6. Nf3 {[%emt 0:00:09]} g6 {[%emt 0:02:29]} 7. c3 {[%emt 0:00:37]} Qc7 {[%emt 0:01:18]} 8. O-O {[%emt 0:03:43]} Bg7 {[%emt 0:01:22]} 9. Re1 {[%emt 0:01:02]} Bf5 {[%emt 0:10:07]} 10. Bxf5 {[%emt 0:04:56]} gxf5 {[%emt 0:00:20]} 11. Nh4 {[%emt 0:03:38]} O-O-O {[%emt 0:09:10]} 12. Nxf5 {[%emt 0:01:11]} Bf8 {[%emt 0:00:24]} 13. Qf3 {[%emt 0:12:39]} Ne4 {[%emt 0:09:25]} 14. c4 {[%emt 0:17:18]} e6 {[%emt 0:09:20]} 15. cxd5 {[%emt 0:01:41]} Rxd5 {[%emt 0:01:18]} 16. Qxe4 {[%emt 0:05:35]} Rxf5 {[%emt 0:01:12]} 17. Be3 {[%emt 0:01:53]} Bd6 {[%emt 0:11:45]} 18. Nc3 {[%emt 0:04:13]} Kb8 {[%emt 0:08:03]} 19. d5 {[%emt 0:11:03]} Re5 {[%emt 0:02:27]} 20. Qa4 {[%emt 0:02:46]} Rxd5 {[%emt 0:12:22]} 21. Nxd5 {[%emt 0:00:23]} exd5 {[%emt 0:00:07]} 22. Red1 {[%emt 0:01:58]} f5 {[%emt 0:02:21]} 23. Rac1 {[%emt 0:00:27]} a6 {[%emt 0:01:52]} 24. Rxd5 {[%emt 0:00:32]} Bh2+ {[%emt 0:00:51]} 25. Kh1 {[%emt 0:00:51]} f4 {[%emt 0:04:17]} 26. Bd4 {[%emt 0:01:07]} Re8 {[%emt 0:04:05]} 27. Kxh2 {[%emt 0:00:19]} f3+ {[%emt 0:00:47]} 28. g3 {[%emt 0:00:13]} Re2 {[%emt 0:00:53]} 29. Be3 {[%emt 0:02:06]} Qf7 {[%emt 0:00:38]} 30. Qf4+ {[%emt 0:00:15]} Qxf4 {[%emt 0:00:16]} 31. gxf4 {[%emt 0:00:08]} Rxb2 {[%emt 0:00:21]} 32. f5 {[%emt 0:00:12]} Rxa2 {[%emt 0:00:53]} 33. f6 {[%emt 0:00:11]} 1-0

[Event "6th Tulsi Lal Memorial NTCC 2080"]
[Site "Lalitpur"]
[Date "2024.01.09"]
[Round "3.7"]
[White "Shrestha, Riya"]
[Black "Demanraura, Ayush"]
[Result "0-1"]
[ECO "B25"]
[WhiteElo "1256"]
[BlackElo "1410"]
[Annotator "NA RC COMBH"]
[PlyCount "76"]
[EventDate "2024.01.03"]
[EventType "team-tourn"]
[EventCountry "NEP"]
[SourceTitle "playchess.com"]
[Source "ChessBase"]
[SourceQuality "1"]
[TimeControl "5400+30"]

1. e4 {[%emt 0:00:46]} c5 {[%emt 0:03:35]} 2. Nc3 {[%emt 0:00:25]} d6 {[%emt 0:00:21]} 3. g3 {[%emt 0:00:11]} Nf6 {[%emt 0:00:34]} 4. Bg2 {[%emt 0:00:20]} g6 {[%emt 0:01:21]} 5. Nge2 {[%emt 0:00:20]} Bg7 {[%emt 0:00:22]} 6. O-O {[%emt 0:00:36]} O-O {[%emt 0:00:34]} 7. h3 {[%emt 0:00:13]} Nc6 {[%emt 0:01:28]} 8. d3 {[%emt 0:00:23]} Bd7 {[%emt 0:00:48]} 9. Be3 {[%emt 0:00:20]} a6 {[%emt 0:03:42]} 10. Qd2 {[%emt 0:00:28]} e6 {[%emt 0:06:14]} 11. Kh2 {[%emt 0:03:33]} Qe7 {[%emt 0:03:12]} 12. Bh6 {[%emt 0:01:44]} Rad8 {[%emt 0:02:14]} 13. Bxg7 {[%emt 0:01:26]} Kxg7 {[%emt 0:00:06]} 14. Rfe1 {[%emt 0:04:07]} e5 {[%emt 0:04:16]} 15. f4 {[%emt 0:03:07]} h5 {[%emt 0:02:59]} 16. fxe5 {[%emt 0:05:26]} Nxe5 {[%emt 0:06:52]} 17. Rf1 {[%emt 0:04:26]} h4 {[%emt 0:24:42]} 18. g4 {[%emt 0:15:42]} Rh8 {[%emt 0:11:45]} 19. Nf4 {[%emt 0:11:54]} Bc6 {[%emt 0:09:06]} 20. Rf2 {[%emt 0:05:17]} Nfxg4+ {[%emt 0:05:49]} 21. hxg4 {[%emt 0:01:09]} Nxg4+ {[%emt 0:00:02]} 22. Kg1 {[%emt 0:02:11]} Nxf2 {[%emt 0:00:03]} 23. Qxf2 {[%emt 0:01:32]} Qg5 {[%emt 0:03:08]} 24. Nh3 {[%emt 0:02:48]} Qe5 {[%emt 0:03:23]} 25. Rf1 {[%emt 0:02:08]} Rd7 26. Qf4 {[%emt 0:08:57]} f6 {[%emt 0:04:05]} 27. Qg4 {[%emt 0:05:21]} Re7 {[%emt 0:01:45]} 28. Nf4 {[%emt 0:01:54]} Qg5 {[%emt 0:00:02]} 29. Qxg5 {[%emt 0:08:05]} fxg5 {[%emt 0:00:07]} 30. Nh3 {[%emt 0:01:14]} g4 {[%emt 0:01:12]} 31. Nf4 {[%emt 0:05:12]} h3 {[%emt 0:00:22]} 32. Bh1 {[%emt 0:02:07]} g3 {[%emt 0:00:08]} 33. Bf3 {[%emt 0:02:09]} g2 {[%emt 0:01:13]} 34. Re1 {[%emt 0:00:43]} Rh4 {[%emt 0:01:01]} 35. Nfe2 {[%emt 0:01:01]} Rf7 {[%emt 0:00:29]} 36. Kf2 {[%emt 0:00:36]} g5 {[%emt 0:00:51]} 37. Kg3 {[%emt 0:01:09]} h2 {[%emt 0:01:09]} 38. Kxg2 {[%emt 0:00:30]} Rxf3 {[%emt 0:00:30]} 0-1

[Event "6th Tulsi Lal Memorial NTCC 2080"]
[Site "Lalitpur"]
[Date "2024.01.10"]
[Round "4.1"]
[White "Subedi, Rajan"]
[Black "Jaiswal, Rupesh"]
[Result "0-1"]
[ECO "B90"]
[WhiteElo "1809"]
[BlackElo "2009"]
[Annotator "RC"]
[PlyCount "113"]
[EventDate "2024.01.03"]
[EventType "team-tourn"]
[EventCountry "NEP"]
[SourceTitle "playchess.com"]
[Source "ChessBase"]
[SourceQuality "1"]
[TimeControl "5400+30"]

1. e4 {[%emt 0:00:31]} c5 {[%emt 0:00:00]} 2. Nf3 d6 3. d4 {[%emt 0:01:29]} cxd4 {[%emt 0:00:07]} 4. Nxd4 {[%emt 0:00:05]} Nf6 {[%emt 0:00:04]} 5. Nc3 {[%emt 0:00:24]} a6 {[%emt 0:00:01]} 6. a4 {[%emt 0:02:16]} Nc6 {[%emt 0:04:52]} 7. Be2 {[%emt 0:00:39]} g6 {[%emt 0:02:48]} 8. Be3 {[%emt 0:01:50]} Bd7 {[%emt 0:00:26]} 9. f3 {[%emt 0:00:46]} Bg7 {[%emt 0:00:20]} 10. Qd2 {[%emt 0:00:11]} Rc8 {[%emt 0:01:13]} 11. Nxc6 {[%emt 0:00:44]} Bxc6 {[%emt 0:03:25]} 12. Bh6 {[%emt 0:02:36]} Bxh6 {[%emt 0:03:45]} 13. Qxh6 {[%emt 0:00:05]} Qa5 {[%emt 0:00:08]} 14. Qd2 {[%emt 0:01:41]} O-O {[%emt 0:02:06]} 15. Nd1 {[%emt 0:01:50]} Qxd2+ {[%emt 0:10:47]} 16. Kxd2 {[%emt 0:00:47]} d5 {[%emt 0:07:33]} 17. exd5 {[%emt 0:08:19]} Nxd5 {[%emt 0:00:22]} 18. Ne3 {[%emt 0:02:56]} Rfd8 {[%emt 0:01:08]} 19. Rhd1 {[%emt 0:01:18]} Bxa4 {[%emt 0:07:09]} 20. Bd3 {[%emt 0:10:43]} Nxe3 {[%emt 0:00:50]} 21. Kxe3 {[%emt 0:00:14]} Bc6 {[%emt 0:01:10]} 22. b4 {[%emt 0:01:47]} Rd6 {[%emt 0:03:56]} 23. c4 {[%emt 0:02:57]} Rcd8 {[%emt 0:00:18]} 24. Be2 {[%emt 0:00:34]} Rxd1 {[%emt 0:00:53]} 25. Bxd1 {[%emt 0:00:33]} e5 {[%emt 0:04:25]} 26. Be2 {[%emt 0:00:22]} f5 {[%emt 0:01:21]} 27. g3 {[%emt 0:00:30]} Kf7 {[%emt 0:00:40]} 28. h4 {[%emt 0:00:09]} Rd4 {[%emt 0:02:28]} 29. Ra5 {[%emt 0:01:54]} Ke6 {[%emt 0:06:50]} 30. Rxe5+ {[%emt 0:01:24]} Kxe5 {[%emt 0:00:06]} 31. f4+ {[%emt 0:00:05]} Rxf4 {[%emt 0:00:07]} 32. gxf4+ {[%emt 0:00:04]} Kf6 {[%emt 0:00:24]} 33. Bf1 {[%emt 0:03:34]} Be4 {[%emt 0:02:07]} 34. c5 {[%emt 0:02:08]} Bc6 {[%emt 0:01:33]} 35. Bc4 {[%emt 0:00:14]} h6 {[%emt 0:00:13]} 36. Bb3 {[%emt 0:00:59]} g5 {[%emt 0:00:12]} 37. hxg5+ {[%emt 0:00:24]} hxg5 {[%emt 0:00:01]} 38. Bc4 {[%emt 0:00:15]} Kg6 {[%emt 0:01:51]} 39. Be2 {[%emt 0:00:07]} Be4 {[%emt 0:00:32]} 40. Bd1 {[%emt 0:00:11]} Kf6 {[%emt 0:02:24]} 41. Bb3 {[%emt 0:00:35]} g4 {[%emt 0:04:32]} 42. Kf2 {[%emt 0:00:27]} Ke7 {[%emt 0:00:14]} 43. Bc4 {[%emt 0:00:29]} Kd7 {[%emt 0:00:16]} 44. Kg3 {[%emt 0:00:17]} Kc6 {[%emt 0:00:05]} 45. Kf2 {[%emt 0:00:56]} Bb1 {[%emt 0:09:59]} 46. Kg3 {[%emt 0:00:45]} Bc2 {[%emt 0:00:05]} 47. Kf2 {[%emt 0:00:06]} Be4 {[%emt 0:00:05]} 48. Kg3 {[%emt 0:00:05]} Bd5 {[%emt 0:00:06]} 49. Bd3 {[%emt 0:00:12]} Be6 {[%emt 0:00:07]} 50. Bf1 {[%emt 0:00:56]} Bc8 {[%emt 0:00:08]} 51. Bc4 {[%emt 0:00:09]} a5 {[%emt 0:00:07]} 52. bxa5 {[%emt 0:02:27]} Kxc5 {[%emt 0:00:04]} 53. Bf1 {[%emt 0:01:23]} Kb4 {[%emt 0:00:04]} 54. Kf2 {[%emt 0:00:29]} Kxa5 {[%emt 0:00:10]} 55. Ke3 {[%emt 0:00:10]} Bd7 {[%emt 0:01:14]} 56. Bd3 {[%emt 0:00:24]} Kb4 {[%emt 0:00:15]} 57. Kd4 {[%emt 0:51:35]} 0-1

[Event "6th Tulsi Lal Memorial NTCC 2080"]
[Site "Lalitpur"]
[Date "2024.01.10"]
[Round "4.2"]
[White "Dahal, Sushrut"]
[Black "Maharjan, Suroj"]
[Result "1-0"]
[ECO "C41"]
[WhiteElo "1895"]
[BlackElo "1832"]
[Annotator "NA RC COMBH"]
[PlyCount "79"]
[EventDate "2024.01.03"]
[EventType "team-tourn"]
[EventCountry "NEP"]
[SourceTitle "playchess.com"]
[Source "ChessBase"]
[SourceQuality "1"]
[TimeControl "5400+30"]

1. Nf3 {[%emt 1:31:00]} d6 2. e4 {[%emt 0:00:00]} e5 {[%emt 0:01:52]} 3. Bc4 {[%emt 0:00:00]} Be7 {[%emt 0:03:25]} 4. d4 {[%emt 0:00:00]} Nd7 {[%emt 0:01:02]} 5. dxe5 {[%emt 0:00:00]} Nxe5 {[%emt 0:01:04]} 6. Nxe5 {[%emt 0:00:00]} dxe5 {[%emt 0:00:42]} 7. Qh5 {[%emt 0:00:00]} g6 {[%emt 0:05:05]} 8. Qf3 {[%emt 0:00:00]} Nf6 {[%emt 0:01:15]} 9. h3 {[%emt 0:00:00]} Qd4 {[%emt 0:02:23]} 10. Nd2 {[%emt 0:00:00]} O-O {[%emt 0:01:18]} 11. O-O {[%emt 0:00:00]} Bd7 {[%emt 0:03:28]} 12. c3 {[%emt 0:00:00]} Qb6 {[%emt 0:02:53]} 13. Re1 {[%emt 0:00:00]} Be6 {[%emt 0:04:15]} 14. Qe2 {[%emt 0:00:00]} Nh5 {[%emt 0:04:45]} 15. Nb3 {[%emt 0:00:00]} Ng3 {[%emt 0:11:28]} 16. Qd3 {[%emt 0:00:00]} Nh5 {[%emt 0:08:57]} 17. Be3 {[%emt 0:00:00]} c5 {[%emt 0:05:43]} 18. Bxe6 {[%emt 0:00:00]} fxe6 {[%emt 0:01:59]} 19. Qc4 {[%emt 0:00:00]} Rac8 {[%emt 0:01:40]} 20. Rad1 {[%emt 0:00:00]} Rc7 {[%emt 0:03:19]} 21. Rd2 {[%emt 0:00:00]} Qc6 {[%emt 0:00:56]} 22. Na5 {[%emt 0:00:00]} Qb6 {[%emt 0:00:58]} 23. Nb3 {[%emt 0:00:00]} Nf4 {[%emt 0:03:29]} 24. Red1 {[%emt 0:00:00]} Qc6 {[%emt 0:00:03]} 25. a4 {[%emt 0:00:00]} a6 {[%emt 0:00:26]} 26. a5 {[%emt 0:00:00]} g5 {[%emt 0:05:31]} 27. Nc1 {[%emt 0:00:00]} h5 {[%emt 0:00:50]} 28. Bxf4 {[%emt 0:00:00]} exf4 {[%emt 0:01:40]} 29. f3 {[%emt 0:00:00]} Kf7 {[%emt 0:05:09]} 30. Nd3 {[%emt 0:00:00]} Kf6 {[%emt 0:00:13] [#]} 31. h4 $1 {[%emt 0:00:00]} gxh4 {[%emt 0:10:42]} 32. Nxf4 {[%emt 0:00:00]} Re8 {[%emt 0:01:54]} 33. e5+ {[%emt 0:00:00]} Kf7 {[%emt 0:02:17]} 34. Qd3 {[%emt 0:00:06]} Rg8 {[%emt 0:00:31]} 35. Qh7+ {[%emt 0:00:28]} Rg7 {[%emt 0:00:08]} 36. Qxh5+ {[%emt 0:00:27]} Kf8 {[%emt 0:02:26]} 37. Nxe6+ {[%emt 0:01:55]} Qxe6 {[%emt 0:05:14] [#]} 38. Rd8+ $15 {[%emt 0:00:04]} Bxd8 {[%emt 0:00:00]} 39. Rxd8+ {[%emt 0:00:05]} Ke7 {[%emt 0:00:00]} 40. Qe8# {[%emt 0:16:25]} 1-0

[Event "6th Tulsi Lal Memorial NTCC 2080"]
[Site "Lalitpur"]
[Date "2024.01.10"]
[Round "4.3"]
[White "Thapa, Rishon"]
[Black "Shrestha, Muhan Narshing"]
[Result "1/2-1/2"]
[ECO "E05"]
[WhiteElo "1738"]
[BlackElo "1693"]
[Annotator "NA RC COMBH"]
[PlyCount "73"]
[EventDate "2024.01.03"]
[EventType "team-tourn"]
[EventCountry "NEP"]
[SourceTitle "playchess.com"]
[Source "ChessBase"]
[SourceQuality "1"]
[TimeControl "5400+30"]

1. d4 {[%emt 0:00:00]} d5 {[%emt 0:00:00]} 2. c4 {[%emt 0:00:15]} e6 {[%emt 0:00:04]} 3. Nf3 {[%emt 1:31:45]} Nf6 4. g3 {[%emt 0:00:00]} Be7 {[%emt 0:00:31]} 5. Bg2 {[%emt 0:00:00]} O-O {[%emt 0:00:02]} 6. O-O {[%emt 0:00:00]} dxc4 {[%emt 0:00:03]} 7. Qc2 {[%emt 0:00:00]} b5 {[%emt 0:00:08]} 8. a4 {[%emt 0:00:00]} c6 {[%emt 0:00:30]} 9. axb5 {[%emt 0:00:00]} cxb5 {[%emt 0:00:01]} 10. Ng5 {[%emt 0:00:00]} h6 {[%emt 0:01:17]} 11. Bxa8 {[%emt 0:00:00]} hxg5 {[%emt 0:00:52]} 12. Rxa7 {[%emt 0:00:00]} Bd7 {[%emt 0:04:20]} 13. Bxg5 {[%emt 0:00:00]} Nc6 {[%emt 0:06:34]} 14. Bxc6 {[%emt 0:00:00]} Bxc6 {[%emt 0:00:29]} 15. Bxf6 {[%emt 0:00:00]} Bxf6 {[%emt 0:00:06]} 16. e3 {[%emt 0:00:00]} Qd5 {[%emt 0:06:28]} 17. f3 {[%emt 0:00:00]} b4 {[%emt 0:02:50]} 18. Rf2 {[%emt 0:00:00]} e5 {[%emt 0:06:27]} 19. dxe5 {[%emt 0:00:00]} Qxe5 {[%emt 0:10:08]} 20. Qxc4 {[%emt 0:00:00]} Qxe3 {[%emt 0:59:40]} 21. Rc7 {[%emt 0:00:00]} Bd4 {[%emt 0:00:00]} 22. Qxd4 {[%emt 0:00:00]} Qxd4 {[%emt 0:00:00]} 23. Rxc6 {[%emt 0:00:00]} Re8 {[%emt 0:00:00]} 24. Kg2 {[%emt 0:00:00]} Qd1 {[%emt 0:00:00]} 25. Nd2 {[%emt 0:00:00]} Re2 {[%emt 0:00:00]} 26. Rd6 {[%emt 0:00:00]} Rxf2+ {[%emt 0:00:00]} 27. Kxf2 {[%emt 0:00:00]} Qc2 {[%emt 0:00:00]} 28. Rd8+ {[%emt 0:00:00]} Kh7 {[%emt 0:00:00]} 29. b3 {[%emt 0:00:00]} Qc7 {[%emt 0:00:00]} 30. Rd3 {[%emt 0:00:00]} Qc1 {[%emt 0:00:00]} 31. h4 {[%emt 0:03:34]} Qc5+ {[%emt 0:00:00]} 32. Re3 {[%emt 0:02:04]} f5 {[%emt 0:00:00]} 33. f4 {[%emt 0:00:12]} Qc1 {[%emt 0:00:00]} 34. Nc4 {[%emt 0:00:30]} Qc2+ {[%emt 0:00:00]} 35. Kf3 {[%emt 0:00:22]} Qd1+ {[%emt 0:00:00]} 36. Kf2 {[%emt 0:00:15]} Qc2+ {[%emt 0:00:00]} 37. Kf3 1/2-1/2

[Event "6th Tulsi Lal Memorial NTCC 2080"]
[Site "Lalitpur"]
[Date "2024.01.10"]
[Round "4.4"]
[White "Lohani, Sujana"]
[Black "Demanraura, Ayush"]
[Result "1-0"]
[ECO "E67"]
[WhiteElo "1756"]
[BlackElo "1410"]
[Annotator "NA RC COMBH"]
[PlyCount "70"]
[EventDate "2024.01.03"]
[EventType "team-tourn"]
[EventCountry "NEP"]
[SourceTitle "playchess.com"]
[Source "ChessBase"]
[SourceQuality "1"]
[TimeControl "5400+30"]

1. d4 {[%emt 0:01:08]} Nf6 {[%emt 1:31:00]} 2. Nf3 {[%emt 0:00:01]} g6 {[%emt 0:00:00]} 3. g3 {[%emt 1:30:51]} Bg7 {[%emt 0:00:00]} 4. Bg2 {[%emt 0:00:00]} O-O {[%emt 0:00:00]} 5. O-O {[%emt 0:00:00]} d6 {[%emt 0:00:00]} 6. c4 {[%emt 0:00:00]} Nbd7 {[%emt 0:00:00]} 7. Nc3 {[%emt 0:00:00]} e5 {[%emt 0:00:00]} 8. e3 {[%emt 0:00:00]} c6 {[%emt 0:00:00]} 9. b3 {[%emt 0:00:00]} Re8 {[%emt 0:00:00]} 10. Qc2 {[%emt 0:00:00]} Qc7 {[%emt 0:00:00]} 11. Ba3 {[%emt 0:00:00]} b6 {[%emt 0:00:00]} 12. Rac1 {[%emt 0:00:00]} Bb7 {[%emt 0:00:00]} 13. Rfd1 {[%emt 0:00:00]} exd4 {[%emt 0:00:00]} 14. Nxd4 {[%emt 0:00:00]} a6 {[%emt 0:00:00]} 15. Nf3 {[%emt 0:00:00]} c5 {[%emt 0:00:00]} 16. Qd2 {[%emt 0:00:00]} Ne5 {[%emt 0:00:00]} 17. Nxe5 {[%emt 0:00:00]} dxe5 {[%emt 0:00:00]} 18. Qd6 {[%emt 0:07:30]} Rac8 {[%emt 0:00:00]} 19. Na4 {[%emt 0:00:00]} Bxg2 {[%emt 0:00:05]} 20. Qxc7 {[%emt 0:00:00]} Rxc7 {[%emt 0:00:13]} 21. Kxg2 {[%emt 0:00:00]} Re6 {[%emt 0:01:04]} 22. Rd8+ {[%emt 0:00:00]} Bf8 {[%emt 0:00:13]} 23. Ra8 {[%emt 0:00:00]} Rd7 {[%emt 0:04:16]} 24. Rc2 {[%emt 0:00:00]} Kg7 {[%emt 0:04:02]} 25. Rxa6 {[%emt 0:00:00]} Rb7 {[%emt 0:00:56]} 26. Bb2 {[%emt 0:00:36]} Nd7 {[%emt 0:00:25]} 27. Rd2 {[%emt 0:01:12]} Rd6 {[%emt 0:00:32]} 28. Rxd6 {[%emt 0:00:54]} Bxd6 {[%emt 0:00:02]} 29. Nc3 {[%emt 0:00:29]} Nf6 {[%emt 0:01:25]} 30. Nb5 {[%emt 0:00:25]} Bb8 {[%emt 0:00:35]} 31. Ra8 {[%emt 0:00:28]} Nd7 {[%emt 0:00:25]} 32. f4 {[%emt 0:00:38]} f6 {[%emt 0:00:07]} 33. Kf3 {[%emt 0:00:25]} Kf7 {[%emt 0:00:39]} 34. a4 {[%emt 0:00:46]} Ke6 {[%emt 0:00:59]} 35. e4 {[%emt 0:01:58]} f5 {[%emt 0:01:02]} 1-0

[Event "6th Tulsi Lal Memorial NTCC 2080"]
[Site "Lalitpur"]
[Date "2024.01.10"]
[Round "4.5"]
[White "Bhandari, Kshitiz"]
[Black "Lama, Milan"]
[Result "1-0"]
[ECO "A35"]
[WhiteElo "2061"]
[BlackElo "2010"]
[Annotator "RC"]
[PlyCount "79"]
[EventDate "2024.01.03"]
[EventType "team-tourn"]
[EventCountry "NEP"]
[SourceTitle "playchess.com"]
[Source "ChessBase"]
[SourceQuality "1"]
[TimeControl "5400+30"]

1. c4 {[%emt 0:00:00]} c5 {[%emt 0:00:00]} 2. Nc3 {[%emt 0:00:00]} Nc6 {[%emt 0:00:09]} 3. Nf3 {[%emt 0:00:06]} g6 {[%emt 1:31:51]} 4. e3 Nf6 {[%emt 0:00:00]} 5. d4 {[%emt 0:01:24]} cxd4 {[%emt 0:00:00]} 6. exd4 {[%emt 0:00:06]} d5 {[%emt 0:00:00]} 7. cxd5 {[%emt 0:14:16]} Nxd5 {[%emt 0:00:00]} 8. Bc4 {[%emt 0:00:16]} Nb6 {[%emt 0:00:00]} 9. Be2 {[%emt 0:15:36]} Bg7 {[%emt 0:00:00]} 10. Be3 {[%emt 0:00:05]} O-O {[%emt 0:00:00]} 11. h3 {[%emt 0:00:25]} Nd5 {[%emt 0:00:00]} 12. Bg5 {[%emt 0:14:59]} h6 {[%emt 0:00:00]} 13. Bc1 {[%emt 0:02:05]} Qa5 {[%emt 0:00:00]} 14. O-O {[%emt 0:14:16]} Nxc3 {[%emt 0:00:00]} 15. bxc3 {[%emt 0:01:49]} Qxc3 {[%emt 0:00:00]} 16. Be3 {[%emt 0:00:07]} Rd8 {[%emt 0:00:00]} 17. Rc1 {[%emt 0:01:08]} Qa5 {[%emt 0:00:00]} 18. Bc4 {[%emt 0:04:37]} Qh5 {[%emt 0:00:00]} 19. Qb3 {[%emt 0:06:40]} Na5 {[%emt 0:00:00]} 20. Bxf7+ {[%emt 0:08:03]} Kf8 {[%emt 0:00:00]} 21. Qa3 {[%emt 0:00:43]} Bxh3 {[%emt 0:00:00]} 22. gxh3 {[%emt 0:01:08]} Qxh3 {[%emt 0:00:00]} 23. Bf4 {[%emt 0:00:48]} Qg4+ {[%emt 0:00:00]} 24. Bg3 {[%emt 0:00:38]} Kxf7 {[%emt 0:00:00]} 25. Nh2 {[%emt 0:00:49]} Qh3 {[%emt 0:01:35]} 26. Qxa5 {[%emt 0:00:20]} Bxd4 {[%emt 0:01:07]} 27. Qa3 {[%emt 0:00:05]} Rd7 {[%emt 0:01:56]} 28. Rce1 {[%emt 0:05:14]} Rc8 {[%emt 0:02:13]} 29. Qf3+ {[%emt 0:01:37]} Kg8 {[%emt 0:00:25]} 30. Qb3+ {[%emt 0:00:10]} Kf8 {[%emt 0:02:38]} 31. Re4 {[%emt 0:01:22]} Bf6 {[%emt 0:02:22]} 32. Ng4 {[%emt 0:02:00]} Kg7 {[%emt 0:00:43]} 33. Rfe1 {[%emt 0:01:52]} Rc3 {[%emt 0:01:26]} 34. Rxe7+ {[%emt 0:00:26]} Rxe7 {[%emt 0:00:27]} 35. Rxe7+ {[%emt 0:00:04]} Bxe7 {[%emt 0:00:28]} 36. Qxc3+ {[%emt 0:00:05]} Kh7 {[%emt 0:00:38]} 37. Qf3 {[%emt 0:00:24]} Kg8 {[%emt 0:00:28]} 38. Qd5+ {[%emt 0:00:01]} Kf8 {[%emt 0:00:26]} 39. Qe6 {[%emt 0:01:40]} h5 {[%emt 0:00:35]} 40. Qc8+ {[%emt 0:00:01]} 1-0